[Event "Titled Tuesday Blitz April 4 Late 2023"]
[White "Ezat, Mohamed"]
[Black "Yeletsky, Ivan"]
[WhiteFideId "10600906"]
[BlackFideId "24180327"]
[WhiteElo "2386"]
[BlackElo "2422"]
[Result "0-1"]
[Round "10"]
[TimeControl "180+2"]
[Date "2023.04.04"]
[WhiteClock "0:00:07"]
[BlackClock "0:00:26"]

1. d4 {[%clk 0:03:00]}  e6 {[%clk 0:02:58]} 2. c4 {[%clk 0:03:00]}  b6 {[%clk 0:02:58]} 3. e4 {[%clk 0:02:59]}  Bb4+ {[%clk 0:02:58]} 4. Bd2 {[%clk 0:02:57]}  Bxd2+ {[%clk 0:02:58]} 5. Qxd2 {[%clk 0:02:57]}  d5 {[%clk 0:02:59]} 6. Nc3 {[%clk 0:02:55]}  Ne7 {[%clk 0:02:57]} 7. Nf3 {[%clk 0:02:54]}  O-O {[%clk 0:02:56]} 8. Bd3 {[%clk 0:02:54]}  dxc4 {[%clk 0:02:56]} 9. Bxc4 {[%clk 0:02:53]}  Bb7 {[%clk 0:02:55]} 10. O-O {[%clk 0:02:51]}  Nd7 {[%clk 0:02:56]} 11. Rfe1 {[%clk 0:02:51]}  Nf6 {[%clk 0:02:53]} 12. Rad1 {[%clk 0:02:50]}  a6 {[%clk 0:02:52]} 13. a3 {[%clk 0:02:48]}  c5 {[%clk 0:02:42]} 14. d5 {[%clk 0:02:45]}  b5 {[%clk 0:02:37]} 15. Ba2 {[%clk 0:02:43]}  exd5 {[%clk 0:02:29]} 16. exd5 {[%clk 0:02:35]}  c4 {[%clk 0:02:25]} 17. d6 {[%clk 0:02:35]}  Ng6 {[%clk 0:02:19]} 18. Ne5 {[%clk 0:02:27]}  Re8 {[%clk 0:02:17]} 19. f4 {[%clk 0:02:21]}  Qb6+ {[%clk 0:02:06]} 20. Qd4 {[%clk 0:02:17]}  Qxd4+ {[%clk 0:02:01]} 21. Rxd4 {[%clk 0:02:17]}  Nd7 {[%clk 0:02:01]} 22. Bb1 {[%clk 0:02:02]}  Ngxe5 {[%clk 0:01:56]} 23. fxe5 {[%clk 0:02:01]}  Rxe5 {[%clk 0:01:54]} 24. Rxe5 {[%clk 0:01:59]}  Nxe5 {[%clk 0:01:55]} 25. Be4 {[%clk 0:01:52]}  Bxe4 {[%clk 0:01:54]} 26. Nxe4 {[%clk 0:01:52]}  Nd7 {[%clk 0:01:50]} 27. a4 {[%clk 0:01:49]}  f6 {[%clk 0:01:16]} 28. Nc3 {[%clk 0:01:07]}  Rb8 {[%clk 0:01:09]} 29. axb5 {[%clk 0:01:04]}  axb5 {[%clk 0:01:10]} 30. Nd5 {[%clk 0:00:58]}  Kf7 {[%clk 0:01:09]} 31. Re4 {[%clk 0:00:58]}  Ne5 {[%clk 0:01:04]} 32. Re1 {[%clk 0:00:41]}  Ke6 {[%clk 0:01:01]} 33. Rd1 {[%clk 0:00:30]}  b4 {[%clk 0:00:47]} 34. Nc7+ {[%clk 0:00:15]}  Kd7 {[%clk 0:00:47]} 35. Na6 {[%clk 0:00:14]}  Rb5 {[%clk 0:00:46]} 36. Kf2 {[%clk 0:00:13]}  Nd3+ {[%clk 0:00:31]} 37. Ke3 {[%clk 0:00:11]}  Nxb2 {[%clk 0:00:31]} 38. Ra1 {[%clk 0:00:09]}  Kxd6 {[%clk 0:00:29]} 39. Kd4 {[%clk 0:00:08]}  Rd5+ {[%clk 0:00:27]} 40. Ke4 {[%clk 0:00:07]}  Nd3 {[%clk 0:00:26]} 0-1


[Site "https://www.chess.com"]

[Event "Titled Tuesday Blitz April 4 Late 2023"]
[White "Maksimovic, Bojan"]
[Black "Annaberdiyev, Meylis"]
[WhiteFideId "14408120"]
[BlackFideId "14000563"]
[WhiteElo "2468"]
[BlackElo "2416"]
[Result "1-0"]
[Round "10"]
[TimeControl "180+2"]
[Date "2023.04.04"]
[WhiteClock "0:01:49"]
[BlackClock "0:01:09"]

1. Nf3 {[%clk 0:03:00]}  Nf6 {[%clk 0:02:57]} 2. g3 {[%clk 0:03:01]}  g6 {[%clk 0:02:57]} 3. Bg2 {[%clk 0:03:02]}  Bg7 {[%clk 0:02:58]} 4. O-O {[%clk 0:03:03]}  O-O {[%clk 0:02:58]} 5. d3 {[%clk 0:03:04]}  c5 {[%clk 0:02:58]} 6. Nbd2 {[%clk 0:03:04]}  d6 {[%clk 0:02:58]} 7. Re1 {[%clk 0:03:05]}  Nc6 {[%clk 0:02:58]} 8. c3 {[%clk 0:03:05]}  Rb8 {[%clk 0:02:57]} 9. a3 {[%clk 0:03:05]}  b5 {[%clk 0:02:57]} 10. e4 {[%clk 0:03:05]}  Bg4 {[%clk 0:02:54]} 11. h3 {[%clk 0:03:03]}  Bxf3 {[%clk 0:02:54]} 12. Nxf3 {[%clk 0:03:04]}  Nd7 {[%clk 0:02:54]} 13. Be3 {[%clk 0:03:00]}  a5 {[%clk 0:02:53]} 14. d4 {[%clk 0:02:59]}  b4 {[%clk 0:02:53]} 15. e5 {[%clk 0:02:37]}  bxc3 {[%clk 0:02:47]} 16. bxc3 {[%clk 0:02:36]}  cxd4 {[%clk 0:02:44]} 17. cxd4 {[%clk 0:02:34]}  dxe5 {[%clk 0:02:39]} 18. d5 {[%clk 0:02:35]}  e4 {[%clk 0:01:59]} 19. dxc6 {[%clk 0:02:08]}  exf3 {[%clk 0:01:59]} 20. Rc1 {[%clk 0:02:07]}  Ne5 {[%clk 0:01:44]} 21. c7 {[%clk 0:01:50]}  Qxd1 {[%clk 0:01:39]} 22. Rexd1 {[%clk 0:01:51]}  Rbc8 {[%clk 0:01:34]} 23. Bf1 {[%clk 0:01:51]}  Ra8 {[%clk 0:01:09]} 24. Ba6 {[%clk 0:01:49]} 1-0


[Site "https://www.chess.com"]

[Event "Titled Tuesday Blitz April 4 Late 2023"]
[White "Bellahcene, Bilel"]
[Black "Szpar, Milosz"]
[WhiteFideId "696358"]
[BlackFideId "1184989"]
[WhiteElo "2566"]
[BlackElo "2436"]
[Result "0-1"]
[Round "10"]
[TimeControl "180+2"]
[Date "2023.04.04"]
[WhiteClock "0:00:45"]
[BlackClock "0:01:00"]

1. Nh3 {[%clk 0:03:00]}  Na6 {[%clk 0:02:55]} 2. g3 {[%clk 0:02:55]}  d5 {[%clk 0:02:54]} 3. d4 {[%clk 0:02:55]}  c5 {[%clk 0:02:53]} 4. dxc5 {[%clk 0:02:51]}  Nxc5 {[%clk 0:02:52]} 5. Bg2 {[%clk 0:02:51]}  Nf6 {[%clk 0:02:51]} 6. Nf4 {[%clk 0:02:49]}  e6 {[%clk 0:02:47]} 7. c4 {[%clk 0:02:45]}  g5 {[%clk 0:02:37]} 8. Nxd5 {[%clk 0:01:54]}  exd5 {[%clk 0:02:34]} 9. Bxg5 {[%clk 0:01:52]}  Be7 {[%clk 0:02:32]} 10. Nc3 {[%clk 0:01:33]}  d4 {[%clk 0:01:56]} 11. Bxf6 {[%clk 0:01:26]}  Bxf6 {[%clk 0:01:56]} 12. Nd5 {[%clk 0:01:27]}  Bg7 {[%clk 0:01:56]} 13. O-O {[%clk 0:01:24]}  O-O {[%clk 0:01:56]} 14. b4 {[%clk 0:01:24]}  Ne6 {[%clk 0:01:56]} 15. Qb3 {[%clk 0:01:22]}  Bd7 {[%clk 0:01:53]} 16. Rad1 {[%clk 0:01:20]}  a5 {[%clk 0:01:51]} 17. b5 {[%clk 0:01:19]}  Nc5 {[%clk 0:01:50]} 18. Qa3 {[%clk 0:01:17]}  b6 {[%clk 0:01:49]} 19. Rd2 {[%clk 0:01:10]}  Re8 {[%clk 0:01:41]} 20. Rfd1 {[%clk 0:01:09]}  Ra7 {[%clk 0:01:36]} 21. Bf3 {[%clk 0:01:00]}  Bf5 {[%clk 0:01:34]} 22. Rxd4 {[%clk 0:00:52]}  Bxd4 {[%clk 0:01:33]} 23. Rxd4 {[%clk 0:00:53]}  Rd7 {[%clk 0:01:20]} 24. Qc1 {[%clk 0:00:51]}  Ne6 {[%clk 0:01:12]} 25. Rd1 {[%clk 0:00:50]}  Ng5 {[%clk 0:01:07]} 26. Qf4 {[%clk 0:00:45]}  Nh3+ {[%clk 0:01:00]} 0-1


[Site "https://www.chess.com"]

[Event "Titled Tuesday Blitz April 4 Late 2023"]
[White "Hansen, Eric"]
[Black "Przybylski, Wojciech"]
[WhiteFideId "2606771"]
[BlackFideId "1117599"]
[WhiteElo "2561"]
[BlackElo "2222"]
[Result "1-0"]
[Round "10"]
[TimeControl "180+2"]
[Date "2023.04.04"]
[WhiteClock "0:00:18"]
[BlackClock "0:00:03"]

1. d4 {[%clk 0:02:50]}  Nf6 {[%clk 0:02:58]} 2. c4 {[%clk 0:02:50]}  e6 {[%clk 0:02:57]} 3. Nc3 {[%clk 0:02:35]}  Bb4 {[%clk 0:02:56]} 4. e3 {[%clk 0:02:35]}  O-O {[%clk 0:02:56]} 5. Ne2 {[%clk 0:02:35]}  d5 {[%clk 0:02:55]} 6. a3 {[%clk 0:02:36]}  Bd6 {[%clk 0:02:52]} 7. Ng3 {[%clk 0:02:34]}  c6 {[%clk 0:02:48]} 8. e4 {[%clk 0:02:23]}  dxe4 {[%clk 0:02:46]} 9. Ngxe4 {[%clk 0:02:21]}  Be7 {[%clk 0:02:39]} 10. Be2 {[%clk 0:02:11]}  Nbd7 {[%clk 0:02:38]} 11. O-O {[%clk 0:02:09]}  c5 {[%clk 0:02:24]} 12. Be3 {[%clk 0:01:54]}  cxd4 {[%clk 0:02:21]} 13. Qxd4 {[%clk 0:01:54]}  Nxe4 {[%clk 0:02:18]} 14. Qxe4 {[%clk 0:01:50]}  Nf6 {[%clk 0:01:55]} 15. Qc2 {[%clk 0:01:45]}  Bd7 {[%clk 0:01:51]} 16. Rfd1 {[%clk 0:01:43]}  Qc8 {[%clk 0:01:49]} 17. b4 {[%clk 0:01:43]}  b6 {[%clk 0:01:46]} 18. b5 {[%clk 0:01:32]}  Qc7 {[%clk 0:01:42]} 19. a4 {[%clk 0:01:18]}  Bc5 {[%clk 0:01:28]} 20. Bxc5 {[%clk 0:01:10]}  Qxc5 {[%clk 0:01:26]} 21. a5 {[%clk 0:01:11]}  e5 {[%clk 0:01:09]} 22. Qb2 {[%clk 0:01:09]}  Be6 {[%clk 0:01:02]} 23. axb6 {[%clk 0:01:03]}  axb6 {[%clk 0:01:01]} 24. Na4 {[%clk 0:00:44]}  Qc7 {[%clk 0:00:57]} 25. Qb4 {[%clk 0:00:44]}  Rac8 {[%clk 0:00:21]} 26. Rac1 {[%clk 0:00:42]}  Ne4 {[%clk 0:00:18]} 27. Bf3 {[%clk 0:00:38]}  Nc5 {[%clk 0:00:17]} 28. Bc6 {[%clk 0:00:37]}  Nxa4 {[%clk 0:00:12]} 29. Qxa4 {[%clk 0:00:38]}  f5 {[%clk 0:00:11]} 30. c5 {[%clk 0:00:35]}  bxc5 {[%clk 0:00:11]} 31. Rxc5 {[%clk 0:00:35]}  Qb6 {[%clk 0:00:10]} 32. Rxe5 {[%clk 0:00:34]}  Bf7 {[%clk 0:00:09]} 33. h4 {[%clk 0:00:31]}  Rcd8 {[%clk 0:00:08]} 34. Rxd8 {[%clk 0:00:29]}  Rxd8 {[%clk 0:00:08]} 35. Rxf5 {[%clk 0:00:29]}  Be6 {[%clk 0:00:05]} 36. Re5 {[%clk 0:00:25]}  Bf7 {[%clk 0:00:04]} 37. Qf4 {[%clk 0:00:20]}  h6 {[%clk 0:00:04]} 38. Re7 {[%clk 0:00:19]}  Rf8 {[%clk 0:00:04]} 39. Rxf7 {[%clk 0:00:18]}  Rxf7 {[%clk 0:00:03]} 40. Bd5 {[%clk 0:00:18]} 1-0


[Site "https://www.chess.com"]

[Event "Titled Tuesday Blitz April 4 Late 2023"]
[White "Weetik, Vjacheslav"]
[Black "Rustemov, Alexander"]
[WhiteFideId "4153472"]
[BlackFideId "4119002"]
[WhiteElo "2469"]
[BlackElo "2834"]
[Result "1/2-1/2"]
[Round "10"]
[TimeControl "180+2"]
[Date "2023.04.04"]
[WhiteClock "0:00:03"]
[BlackClock "0:00:13"]

1. d4 {[%clk 0:02:59]}  d5 {[%clk 0:02:55]} 2. c4 {[%clk 0:02:59]}  c6 {[%clk 0:02:55]} 3. Nf3 {[%clk 0:02:58]}  Nf6 {[%clk 0:02:55]} 4. g3 {[%clk 0:02:58]}  Bf5 {[%clk 0:02:53]} 5. Nc3 {[%clk 0:02:59]}  e6 {[%clk 0:02:51]} 6. Nh4 {[%clk 0:02:59]}  dxc4 {[%clk 0:02:46]} 7. Nxf5 {[%clk 0:02:53]}  exf5 {[%clk 0:02:47]} 8. e3 {[%clk 0:02:51]}  Nbd7 {[%clk 0:02:42]} 9. Bxc4 {[%clk 0:02:50]}  Nb6 {[%clk 0:02:42]} 10. Bf1 {[%clk 0:02:37]}  Be7 {[%clk 0:02:34]} 11. Bg2 {[%clk 0:02:37]}  O-O {[%clk 0:02:34]} 12. O-O {[%clk 0:02:37]}  Qd7 {[%clk 0:02:34]} 13. Qc2 {[%clk 0:02:34]}  Rad8 {[%clk 0:02:31]} 14. b3 {[%clk 0:02:26]}  Nbd5 {[%clk 0:02:30]} 15. Bd2 {[%clk 0:02:17]}  Rfe8 {[%clk 0:02:28]} 16. Rad1 {[%clk 0:02:08]}  Bd6 {[%clk 0:02:22]} 17. Nxd5 {[%clk 0:02:04]}  Nxd5 {[%clk 0:02:16]} 18. Bh3 {[%clk 0:01:59]}  g6 {[%clk 0:02:15]} 19. Rfe1 {[%clk 0:01:46]}  Qe7 {[%clk 0:02:05]} 20. Bg2 {[%clk 0:01:34]}  h5 {[%clk 0:01:57]} 21. f3 {[%clk 0:01:25]}  h4 {[%clk 0:01:37]} 22. e4 {[%clk 0:01:22]}  Nb4 {[%clk 0:01:37]} 23. Bxb4 {[%clk 0:00:38]}  Bxb4 {[%clk 0:01:36]} 24. Rf1 {[%clk 0:00:33]}  hxg3 {[%clk 0:01:29]} 25. hxg3 {[%clk 0:00:33]}  Qg5 {[%clk 0:01:07]} 26. Qf2 {[%clk 0:00:31]}  Ba5 {[%clk 0:01:06]} 27. f4 {[%clk 0:00:27]}  Qh5 {[%clk 0:01:02]} 28. Bf3 {[%clk 0:00:24]}  Qh3 {[%clk 0:01:01]} 29. e5 {[%clk 0:00:16]}  Bb6 {[%clk 0:00:59]} 30. Rd3 {[%clk 0:00:16]}  Kg7 {[%clk 0:00:56]} 31. Rfd1 {[%clk 0:00:13]}  Rh8 {[%clk 0:00:53]} 32. Qg2 {[%clk 0:00:13]}  Qh6 {[%clk 0:00:50]} 33. Kf1 {[%clk 0:00:13]}  Rd7 {[%clk 0:00:47]} 34. d5 {[%clk 0:00:14]}  cxd5 {[%clk 0:00:47]} 35. Bxd5 {[%clk 0:00:13]}  Rhd8 {[%clk 0:00:44]} 36. Bc4 {[%clk 0:00:14]}  Rxd3 {[%clk 0:00:42]} 37. Rxd3 {[%clk 0:00:14]}  Rxd3 {[%clk 0:00:42]} 38. Bxd3 {[%clk 0:00:15]}  Qh5 {[%clk 0:00:42]} 39. Be2 {[%clk 0:00:13]}  Qh8 {[%clk 0:00:40]} 40. Qxb7 {[%clk 0:00:12]}  Qh3+ {[%clk 0:00:37]} 41. Qg2 {[%clk 0:00:12]}  Qh8 {[%clk 0:00:36]} 42. Bc4 {[%clk 0:00:12]}  Qh5 {[%clk 0:00:31]} 43. Qd5 {[%clk 0:00:07]}  Qh3+ {[%clk 0:00:29]} 44. Ke2 {[%clk 0:00:06]}  Qh2+ {[%clk 0:00:27]} 45. Kd1 {[%clk 0:00:07]}  Qg1+ {[%clk 0:00:19]} 46. Kc2 {[%clk 0:00:07]}  Qf2+ {[%clk 0:00:19]} 47. Kd1 {[%clk 0:00:05]}  Qg1+ {[%clk 0:00:17]} 48. Kc2 {[%clk 0:00:04]}  Qf2+ {[%clk 0:00:18]} 49. Kd1 {[%clk 0:00:03]}  Qg1+ {[%clk 0:00:13]} 1/2-1/2


[Site "https://www.chess.com"]

[Event "Titled Tuesday Blitz April 4 Late 2023"]
[White "Sieciechowicz, Marcin"]
[Black "Urazayev, Arystanbek"]
[WhiteFideId "1130170"]
[BlackFideId "13709810"]
[WhiteElo "2302"]
[BlackElo "2449"]
[Result "0-1"]
[Round "10"]
[TimeControl "180+2"]
[Date "2023.04.04"]
[WhiteClock "0:00:27"]
[BlackClock "0:02:37"]

1. d4 {[%clk 0:03:00]}  Nf6 {[%clk 0:02:55]} 2. c4 {[%clk 0:03:01]}  g6 {[%clk 0:02:56]} 3. Nc3 {[%clk 0:03:01]}  Bg7 {[%clk 0:02:56]} 4. e4 {[%clk 0:03:02]}  d6 {[%clk 0:02:57]} 5. f3 {[%clk 0:03:02]}  O-O {[%clk 0:02:57]} 6. Be3 {[%clk 0:03:03]}  c5 {[%clk 0:02:58]} 7. Nge2 {[%clk 0:02:59]}  Nc6 {[%clk 0:02:58]} 8. d5 {[%clk 0:02:59]}  Ne5 {[%clk 0:02:58]} 9. Ng3 {[%clk 0:02:58]}  e6 {[%clk 0:02:59]} 10. Be2 {[%clk 0:02:55]}  exd5 {[%clk 0:03:00]} 11. cxd5 {[%clk 0:02:56]}  b5 {[%clk 0:03:00]} 12. Bxb5 {[%clk 0:02:50]}  Rb8 {[%clk 0:03:00]} 13. O-O {[%clk 0:02:09]}  a6 {[%clk 0:03:00]} 14. Be2 {[%clk 0:02:09]}  Rxb2 {[%clk 0:03:00]} 15. Qc1 {[%clk 0:02:00]}  Rb4 {[%clk 0:03:00]} 16. a3 {[%clk 0:01:53]}  Rb3 {[%clk 0:02:59]} 17. Qc2 {[%clk 0:01:48]}  Rxc3 {[%clk 0:02:47]} 18. Qxc3 {[%clk 0:01:49]}  Nxd5 {[%clk 0:02:47]} 19. Qc1 {[%clk 0:01:29]}  Nxe3 {[%clk 0:02:48]} 20. Qxe3 {[%clk 0:01:25]}  Ng4 {[%clk 0:02:46]} 21. Qd2 {[%clk 0:01:09]}  Bd4+ {[%clk 0:02:46]} 22. Kh1 {[%clk 0:01:10]}  Nxh2 {[%clk 0:02:46]} 23. Qh6 {[%clk 0:00:49]}  Nxf1 {[%clk 0:02:46]} 24. Rxf1 {[%clk 0:00:46]}  Bg7 {[%clk 0:02:46]} 25. Qh2 {[%clk 0:00:43]}  Qa5 {[%clk 0:02:40]} 26. f4 {[%clk 0:00:40]}  Qxa3 {[%clk 0:02:40]} 27. f5 {[%clk 0:00:41]}  Be5 {[%clk 0:02:41]} 28. Bf3 {[%clk 0:00:41]}  Qd3 {[%clk 0:02:40]} 29. Rg1 {[%clk 0:00:40]}  Qe3 {[%clk 0:02:39]} 30. Qh3 {[%clk 0:00:39]}  Qg5 {[%clk 0:02:36]} 31. Ne2 {[%clk 0:00:28]}  gxf5 {[%clk 0:02:36]} 32. exf5 {[%clk 0:00:28]}  Bxf5 {[%clk 0:02:37]} 33. g4 {[%clk 0:00:27]}  Bg6 {[%clk 0:02:37]} 0-1


[Site "https://www.chess.com"]

[Event "Titled Tuesday Blitz April 4 Late 2023"]
[White "cryptoguru02"]
[Black "Baskakov, Egor"]
[BlackFideId "24197866"]
[WhiteElo "2618"]
[BlackElo "2212"]
[Result "1-0"]
[Round "10"]
[TimeControl "180+2"]
[Date "2023.04.04"]
[WhiteClock "0:00:31"]
[BlackClock "0:00:31"]

1. d4 {[%clk 0:03:00]}  Nf6 {[%clk 0:02:59]} 2. c4 {[%clk 0:03:01]}  e6 {[%clk 0:03:00]} 3. Nc3 {[%clk 0:03:00]}  d5 {[%clk 0:03:01]} 4. Nf3 {[%clk 0:03:00]}  Ne4 {[%clk 0:03:01]} 5. Nxe4 {[%clk 0:02:49]}  dxe4 {[%clk 0:03:02]} 6. Ng1 {[%clk 0:02:42]}  c5 {[%clk 0:02:59]} 7. dxc5 {[%clk 0:02:33]}  Qf6 {[%clk 0:03:00]} 8. e3 {[%clk 0:02:25]}  Bxc5 {[%clk 0:02:58]} 9. a3 {[%clk 0:02:21]}  O-O {[%clk 0:02:56]} 10. Ne2 {[%clk 0:02:19]}  Rd8 {[%clk 0:02:55]} 11. Qc2 {[%clk 0:02:19]}  Qg6 {[%clk 0:02:35]} 12. b4 {[%clk 0:02:11]}  Be7 {[%clk 0:02:35]} 13. Bb2 {[%clk 0:02:11]}  e5 {[%clk 0:02:30]} 14. Bxe5 {[%clk 0:02:03]}  Nc6 {[%clk 0:02:30]} 15. Bc3 {[%clk 0:02:02]}  Bg4 {[%clk 0:02:26]} 16. Nf4 {[%clk 0:01:58]}  Qh6 {[%clk 0:02:23]} 17. Nd5 {[%clk 0:01:51]}  Bf8 {[%clk 0:02:19]} 18. Qxe4 {[%clk 0:01:46]}  Bh5 {[%clk 0:02:12]} 19. Qc2 {[%clk 0:01:42]}  Ne7 {[%clk 0:02:09]} 20. Nf4 {[%clk 0:01:36]}  Bg4 {[%clk 0:02:06]} 21. Bd3 {[%clk 0:01:32]}  Ng6 {[%clk 0:02:07]} 22. Nxg6 {[%clk 0:01:23]}  hxg6 {[%clk 0:02:08]} 23. Be5 {[%clk 0:01:14]}  Rac8 {[%clk 0:02:02]} 24. O-O {[%clk 0:01:11]}  Qh5 {[%clk 0:01:57]} 25. Bg3 {[%clk 0:01:11]}  Be6 {[%clk 0:01:54]} 26. Rac1 {[%clk 0:01:05]}  a5 {[%clk 0:01:46]} 27. c5 {[%clk 0:01:00]}  axb4 {[%clk 0:01:36]} 28. axb4 {[%clk 0:01:01]}  b6 {[%clk 0:01:36]} 29. Ba6 {[%clk 0:00:58]}  Ra8 {[%clk 0:01:36]} 30. Bb7 {[%clk 0:00:57]}  Ra2 {[%clk 0:01:35]} 31. Qc3 {[%clk 0:00:50]}  bxc5 {[%clk 0:01:28]} 32. bxc5 {[%clk 0:00:51]}  Qf5 {[%clk 0:01:15]} 33. c6 {[%clk 0:00:49]}  Ra3 {[%clk 0:01:13]} 34. Qc2 {[%clk 0:00:45]}  Qxc2 {[%clk 0:00:54]} 35. Rxc2 {[%clk 0:00:45]}  Bc8 {[%clk 0:00:48]} 36. c7 {[%clk 0:00:43]}  Re8 {[%clk 0:00:48]} 37. Bc6 {[%clk 0:00:42]}  Re6 {[%clk 0:00:46]} 38. Bf3 {[%clk 0:00:42]}  Rea6 {[%clk 0:00:42]} 39. Rb2 {[%clk 0:00:39]}  Ra1 {[%clk 0:00:33]} 40. Rb8 {[%clk 0:00:34]}  Rxf1+ {[%clk 0:00:32]} 41. Kxf1 {[%clk 0:00:35]}  Ra1+ {[%clk 0:00:33]} 42. Ke2 {[%clk 0:00:35]}  Ba6+ {[%clk 0:00:33]} 43. Kd2 {[%clk 0:00:34]}  Ra2+ {[%clk 0:00:33]} 44. Kc3 {[%clk 0:00:32]}  Ra3+ {[%clk 0:00:33]} 45. Kb2 {[%clk 0:00:31]}  Rd3 {[%clk 0:00:32]} 46. c8=Q {[%clk 0:00:30]}  Bxc8 {[%clk 0:00:31]} 47. Rxc8 {[%clk 0:00:31]} 1-0


[Site "https://www.chess.com"]

[Event "Titled Tuesday Blitz April 4 Late 2023"]
[White "TimGrutter03"]
[Black "Timofeev, Artyom"]
[BlackFideId "4140419"]
[WhiteElo "2594"]
[BlackElo "2586"]
[Result "0-1"]
[Round "10"]
[TimeControl "180+2"]
[Date "2023.04.04"]
[WhiteClock "0:00:01"]
[BlackClock "0:00:16"]

1. e4 {[%clk 0:03:00]}  d6 {[%clk 0:02:58]} 2. d4 {[%clk 0:03:00]}  Nf6 {[%clk 0:02:58]} 3. Nc3 {[%clk 0:03:01]}  g6 {[%clk 0:02:58]} 4. Bg5 {[%clk 0:03:00]}  h6 {[%clk 0:02:58]} 5. Bh4 {[%clk 0:02:58]}  c6 {[%clk 0:02:48]} 6. f4 {[%clk 0:02:47]}  Qa5 {[%clk 0:02:37]} 7. Qd2 {[%clk 0:02:39]}  b5 {[%clk 0:02:34]} 8. e5 {[%clk 0:02:35]}  b4 {[%clk 0:02:04]} 9. exf6 {[%clk 0:02:31]}  bxc3 {[%clk 0:02:04]} 10. bxc3 {[%clk 0:02:22]}  Be6 {[%clk 0:01:58]} 11. fxe7 {[%clk 0:02:20]}  Bxe7 {[%clk 0:01:58]} 12. Bxe7 {[%clk 0:02:19]}  Kxe7 {[%clk 0:01:59]} 13. Bd3 {[%clk 0:02:08]}  Kf8 {[%clk 0:01:55]} 14. Ne2 {[%clk 0:02:02]}  Kg7 {[%clk 0:01:47]} 15. O-O {[%clk 0:01:59]}  f5 {[%clk 0:01:47]} 16. Rfe1 {[%clk 0:01:52]}  Nd7 {[%clk 0:01:46]} 17. Nc1 {[%clk 0:01:50]}  Rhe8 {[%clk 0:01:42]} 18. Nb3 {[%clk 0:01:48]}  Qc7 {[%clk 0:01:32]} 19. Re2 {[%clk 0:01:35]}  Bf7 {[%clk 0:01:31]} 20. Rae1 {[%clk 0:01:34]}  Rxe2 {[%clk 0:01:30]} 21. Rxe2 {[%clk 0:01:35]}  Nb6 {[%clk 0:01:25]} 22. g3 {[%clk 0:01:31]}  a5 {[%clk 0:01:22]} 23. Qe1 {[%clk 0:01:25]}  Kf8 {[%clk 0:01:20]} 24. g4 {[%clk 0:01:07]}  Nd5 {[%clk 0:01:10]} 25. gxf5 {[%clk 0:01:06]}  Nxf4 {[%clk 0:01:08]} 26. Re3 {[%clk 0:00:42]}  g5 {[%clk 0:00:55]} 27. f6 {[%clk 0:00:41]}  Qd7 {[%clk 0:00:36]} 28. Be2 {[%clk 0:00:11]}  Qf5 {[%clk 0:00:24]} 29. Bf3 {[%clk 0:00:10]}  Qxf6 {[%clk 0:00:21]} 30. Bxc6 {[%clk 0:00:10]}  Rc8 {[%clk 0:00:21]} 31. Nxa5 {[%clk 0:00:08]}  Qf5 {[%clk 0:00:21]} 32. c4 {[%clk 0:00:07]}  Rc7 {[%clk 0:00:20]} 33. c5 {[%clk 0:00:06]}  dxc5 {[%clk 0:00:20]} 34. d5 {[%clk 0:00:05]}  Nxd5 {[%clk 0:00:18]} 35. Bxd5 {[%clk 0:00:05]}  Qxd5 {[%clk 0:00:18]} 36. Nb3 {[%clk 0:00:03]}  c4 {[%clk 0:00:18]} 37. Nd2 {[%clk 0:00:03]}  Qd4 {[%clk 0:00:18]} 38. Nf3 {[%clk 0:00:03]}  Qg4+ {[%clk 0:00:17]} 39. Kf2 {[%clk 0:00:01]}  Bd5 {[%clk 0:00:16]} 40. Ne5 {[%clk 0:00:01]}  Qf4+ {[%clk 0:00:16]} 41. Kg1 {[%clk 0:00:01]}  Kg7 {[%clk 0:00:16]} 0-1


[Site "https://www.chess.com"]

[Event "Titled Tuesday Blitz April 4 Late 2023"]
[White "Leitao, Rafael"]
[Black "Han, Yichen"]
[WhiteFideId "2101246"]
[BlackFideId "1054430"]
[WhiteElo "2609"]
[BlackElo "2342"]
[Result "1-0"]
[Round "10"]
[TimeControl "180+2"]
[Date "2023.04.04"]
[WhiteClock "0:00:35"]
[BlackClock "0:00:04"]

1. c4 {[%clk 0:02:59]}  e5 {[%clk 0:02:59]} 2. Nc3 {[%clk 0:02:58]}  Nc6 {[%clk 0:02:59]} 3. Nf3 {[%clk 0:02:55]}  Nf6 {[%clk 0:02:58]} 4. e4 {[%clk 0:02:54]}  Bb4 {[%clk 0:02:57]} 5. d3 {[%clk 0:02:54]}  d6 {[%clk 0:02:57]} 6. a3 {[%clk 0:02:54]}  Bxc3+ {[%clk 0:02:56]} 7. bxc3 {[%clk 0:02:54]}  O-O {[%clk 0:02:57]} 8. g3 {[%clk 0:02:55]}  Ne7 {[%clk 0:02:54]} 9. Bg2 {[%clk 0:02:53]}  c6 {[%clk 0:02:55]} 10. O-O {[%clk 0:02:52]}  Ng6 {[%clk 0:02:54]} 11. Rb1 {[%clk 0:02:29]}  b6 {[%clk 0:02:53]} 12. Re1 {[%clk 0:02:14]}  Bb7 {[%clk 0:02:48]} 13. a4 {[%clk 0:01:57]}  Qc7 {[%clk 0:02:48]} 14. Qb3 {[%clk 0:01:49]}  Rab8 {[%clk 0:02:44]} 15. Ba3 {[%clk 0:01:40]}  Rfd8 {[%clk 0:02:40]} 16. Nd2 {[%clk 0:01:38]}  Bc8 {[%clk 0:02:35]} 17. Nf1 {[%clk 0:01:37]}  Be6 {[%clk 0:02:31]} 18. Ne3 {[%clk 0:01:37]}  b5 {[%clk 0:02:27]} 19. Qc2 {[%clk 0:01:21]}  bxc4 {[%clk 0:02:13]} 20. dxc4 {[%clk 0:01:21]}  c5 {[%clk 0:02:08]} 21. Nd5 {[%clk 0:01:14]}  Bxd5 {[%clk 0:02:02]} 22. cxd5 {[%clk 0:01:13]}  Nd7 {[%clk 0:01:57]} 23. Bf1 {[%clk 0:01:12]}  Rb6 {[%clk 0:01:49]} 24. Rb5 {[%clk 0:01:09]}  Rdb8 {[%clk 0:01:49]} 25. Reb1 {[%clk 0:01:07]}  h6 {[%clk 0:01:41]} 26. h4 {[%clk 0:01:07]}  Ne7 {[%clk 0:01:36]} 27. Bh3 {[%clk 0:01:03]}  Rxb5 {[%clk 0:01:33]} 28. axb5 {[%clk 0:01:01]}  Nb6 {[%clk 0:01:32]} 29. c4 {[%clk 0:01:00]}  g6 {[%clk 0:01:30]} 30. Bb2 {[%clk 0:00:59]}  Ra8 {[%clk 0:01:21]} 31. f4 {[%clk 0:00:59]}  f6 {[%clk 0:01:15]} 32. Be6+ {[%clk 0:00:57]}  Kg7 {[%clk 0:01:03]} 33. Rf1 {[%clk 0:00:57]}  Rf8 {[%clk 0:00:55]} 34. g4 {[%clk 0:00:57]}  Qd8 {[%clk 0:00:35]} 35. g5 {[%clk 0:00:56]}  hxg5 {[%clk 0:00:32]} 36. hxg5 {[%clk 0:00:55]}  Nec8 {[%clk 0:00:24]} 37. Qg2 {[%clk 0:00:51]}  Nxc4 {[%clk 0:00:16]} 38. Bc1 {[%clk 0:00:51]}  fxg5 {[%clk 0:00:14]} 39. f5 {[%clk 0:00:52]}  Qe8 {[%clk 0:00:08]} 40. Bxg5 {[%clk 0:00:51]}  Rh8 {[%clk 0:00:03]} 41. fxg6 {[%clk 0:00:44]}  Rh5 {[%clk 0:00:03]} 42. Bf6+ {[%clk 0:00:39]}  Kh6 {[%clk 0:00:04]} 43. g7 {[%clk 0:00:37]}  Ne3 {[%clk 0:00:04]} 44. g8=Q {[%clk 0:00:35]} 1-0


[Site "https://www.chess.com"]